[Event "*** Titled Tuesday 3|2 Blitz"]
[Site "Chess.com"]
[Date "2016.08.02"]
[Round "4"]
[White "RamonManon0g"]
[Black "wonderfultime"]
[Result "0-1"]
[WhiteElo "2228"]
[BlackElo "2617"]
[TimeControl "180+2"]
[EndTime "11:49:31 PDT"]
[Termination "wonderfultime won by resignation"]

1. d4 {[%clk 0:03:01.9]} 1... d5 {[%clk 0:02:07]} 2. c4 {[%clk 0:03:01.5]} 2...
c6 {[%clk 0:02:06.6]} 3. Nf3 {[%clk 0:03:02.5]} 3... Nf6 {[%clk 0:02:02.7]} 4.
Nc3 {[%clk 0:03:03.5]} 4... dxc4 {[%clk 0:02:01.5]} 5. a4 {[%clk 0:03:03.8]}
5... Bf5 {[%clk 0:02:01.2]} 6. e3 {[%clk 0:03:03.8]} 6... e6 {[%clk 0:02:02.2]}
7. Bxc4 {[%clk 0:03:04.4]} 7... Bb4 {[%clk 0:02:03.8]} 8. O-O {[%clk 0:03:05.3]}
8... O-O {[%clk 0:02:04.6]} 9. Qe2 {[%clk 0:03:03]} 9... Nbd7 {[%clk 0:02:04.1]}
10. e4 {[%clk 0:02:48.7]} 10... Bg6 {[%clk 0:02:04.1]} 11. Bg5 {[%clk
0:02:45.5]} 11... Bxc3 {[%clk 0:01:55.7]} 12. bxc3 {[%clk 0:02:43.7]} 12... Bxe4
{[%clk 0:01:56.9]} 13. Ne5 {[%clk 0:02:33.8]} 13... Bg6 {[%clk 0:01:56.8]} 14.
Nxd7 {[%clk 0:02:31.4]} 14... Qxd7 {[%clk 0:01:57.5]} 15. Bxf6 {[%clk
0:02:32.9]} 15... gxf6 {[%clk 0:01:59.4]} 16. h4 {[%clk 0:02:31.3]} 16... Kh8
{[%clk 0:01:53.6]} 17. Qf3 {[%clk 0:01:58.9]} 17... Qe7 {[%clk 0:01:53.6]} 18.
Rfe1 {[%clk 0:01:50.7]} 18... Rae8 {[%clk 0:01:34.5]} 19. a5 {[%clk 0:01:43.9]}
19... Rg8 {[%clk 0:01:33.5]} 20. a6 {[%clk 0:01:43.1]} 20... b5 {[%clk
0:01:30.7]} 21. Bb3 {[%clk 0:01:43.7]} 21... Bf5 {[%clk 0:01:22.1]} 22. Qxc6
{[%clk 0:01:28.3]} 22... Rc8 {[%clk 0:01:22.5]} 23. Qb7 {[%clk 0:01:29.7]} 23...
Rc7 {[%clk 0:01:18.4]} 24. Qxb5 {[%clk 0:01:28]} 24... Bh3 {[%clk 0:01:13.9]}
25. Bd5 {[%clk 0:01:06.7]} 25... Qd6 {[%clk 0:01:09.2]} 26. Bf3 {[%clk
0:00:49.6]} 26... Rxc3 {[%clk 0:01:09.5]} 27. Re3 {[%clk 0:00:15.6]} 27... Rxe3
{[%clk 0:00:30.3]} 28. fxe3 {[%clk 0:00:17.5]} 28... Qg3 {[%clk 0:00:31.5]} 29.
Qe2 {[%clk 0:00:18.4]} 29... Bg4 {[%clk 0:00:32.5]} 30. Kf1 {[%clk 0:00:17.2]}
30... Qxh4 {[%clk 0:00:33]} 31. Qf2 {[%clk 0:00:11.7]} 31... Qh1+ {[%clk
0:00:33.2]} 32. Qg1 {[%clk 0:00:11.1]} 32... Qxg1+ {[%clk 0:00:34.3]} 33. Kxg1
{[%clk 0:00:13]} 33... Bxf3 {[%clk 0:00:36.2]} 34. Ra2 {[%clk 0:00:14.7]} 34...
Be4 {[%clk 0:00:37]} 35. Rb2 {[%clk 0:00:14.2]} 35... f5 {[%clk 0:00:37.4]} 36.
Kf1 {[%clk 0:00:16.1]} 36... Rc8 {[%clk 0:00:36.9]} 37. Kf2 {[%clk 0:00:16.3]}
37... Rc2+ {[%clk 0:00:37.1]} 38. Rxc2 {[%clk 0:00:18.2]} 38... Bxc2 {[%clk
0:00:39]} 0-1

[Event "*** Titled Tuesday 3|2 Blitz"]
[Site "Chess.com"]
[Date "2016.08.02"]
[Round "4"]
[White "Haridaskesavan"]
[Black "usbista"]
[Result "1-0"]
[WhiteElo "2115"]
[BlackElo "2007"]
[TimeControl "180+2"]
[EndTime "11:49:48 PDT"]
[Termination "Haridaskesavan won by resignation"]

1. e4 {[%clk 0:03:01.9]} 1... c5 {[%clk 0:02:59.7]} 2. c3 {[%clk 0:03:02.6]}
2... d5 {[%clk 0:02:59.7]} 3. exd5 {[%clk 0:03:03.1]} 3... Qxd5 {[%clk
0:03:01.6]} 4. d4 {[%clk 0:03:04.1]} 4... Nc6 {[%clk 0:03:02]} 5. Nf3 {[%clk
0:03:05.1]} 5... Bf5 {[%clk 0:03:02.3]} 6. Be2 {[%clk 0:03:05.5]} 6... cxd4
{[%clk 0:02:48.9]} 7. cxd4 {[%clk 0:03:06]} 7... e5 {[%clk 0:02:49.6]} 8. dxe5
{[%clk 0:03:02.6]} 8... Qxd1+ {[%clk 0:02:45.8]} 9. Bxd1 {[%clk 0:03:03.2]} 9...
Bb4+ {[%clk 0:02:40.5]} 10. Nc3 {[%clk 0:03:03.5]} 10... O-O-O {[%clk
0:02:34.3]} 11. O-O {[%clk 0:03:01.5]} 11... Nge7 {[%clk 0:02:35.3]} 12. Be3
{[%clk 0:02:47.6]} 12... Ng6 {[%clk 0:02:33.2]} 13. Rc1 {[%clk 0:02:38.2]} 13...
Kb8 {[%clk 0:02:30]} 14. Re1 {[%clk 0:02:18.8]} 14... Rhe8 {[%clk 0:02:24.6]}
15. Bg5 {[%clk 0:02:13.3]} 15... Bxc3 {[%clk 0:02:03.3]} 16. bxc3 {[%clk
0:02:09.8]} 16... Rd5 {[%clk 0:02:04]} 17. Bb3 {[%clk 0:02:00.9]} 17... Rd7
{[%clk 0:02:00.5]} 18. Ba4 {[%clk 0:01:37.9]} 18... h6 {[%clk 0:01:32.5]} 19.
Bxc6 {[%clk 0:01:28.6]} 19... bxc6 {[%clk 0:01:33.4]} 20. Be3 {[%clk 0:01:18.5]}
20... Bg4 {[%clk 0:01:10.6]} 21. Nd4 {[%clk 0:01:05.1]} 21... Nxe5 {[%clk
0:00:58.5]} 22. Bf4 {[%clk 0:00:59.8]} 22... f6 {[%clk 0:00:51.5]} 23. Nxc6+
{[%clk 0:00:53.4]} 23... Kb7 {[%clk 0:00:50.1]} 24. Nxe5 {[%clk 0:00:54.1]}
24... fxe5 {[%clk 0:00:50.9]} 25. Rxe5 {[%clk 0:00:47.2]} 25... Rxe5 {[%clk
0:00:39.9]} 26. Bxe5 {[%clk 0:00:48]} 26... g6 {[%clk 0:00:41.1]} 27. f3 {[%clk
0:00:44.7]} 27... Bf5 {[%clk 0:00:42.1]} 28. Bd4 {[%clk 0:00:45.1]} 28... Re7
{[%clk 0:00:41.8]} 29. Kf2 {[%clk 0:00:45.2]} 29... Bd3 {[%clk 0:00:42.9]} 30.
Re1 {[%clk 0:00:41.2]} 30... Rd7 {[%clk 0:00:41.5]} 31. Re6 {[%clk 0:00:37.6]}
31... Bc4 {[%clk 0:00:37.6]} 32. Rxg6 {[%clk 0:00:32.5]} 32... Bxa2 {[%clk
0:00:38.3]} 33. Rxh6 {[%clk 0:00:32.3]} 33... Re7 {[%clk 0:00:34.9]} 34. h4
{[%clk 0:00:25.7]} 34... a5 {[%clk 0:00:35.5]} 35. Rb6+ {[%clk 0:00:26.1]} 35...
Kc7 {[%clk 0:00:33.5]} 36. Ra6 {[%clk 0:00:26.7]} 36... Bc4 {[%clk 0:00:29.4]}
37. Rxa5 {[%clk 0:00:26.1]} 1-0

[Event "*** Titled Tuesday 3|2 Blitz"]
[Site "Chess.com"]
[Date "2016.08.02"]
[Round "4"]
[White "Astaneh"]
[Black "Yaacovn"]
[Result "0-1"]
[WhiteElo "2486"]
[BlackElo "2628"]
[TimeControl "180+2"]
[EndTime "11:49:55 PDT"]
[Termination "Yaacovn won on time"]

1. d4 {[%clk 0:02:55.3]} 1... Nf6 {[%clk 0:03:01]} 2. Nf3 {[%clk 0:02:56.6]}
2... e6 {[%clk 0:03:01.1]} 3. c4 {[%clk 0:02:57]} 3... Bb4+ {[%clk 0:03:02.1]}
4. Nbd2 {[%clk 0:02:58.2]} 4... d5 {[%clk 0:03:02.1]} 5. e3 {[%clk 0:02:54.2]}
5... O-O {[%clk 0:03:02.2]} 6. a3 {[%clk 0:02:55.4]} 6... Be7 {[%clk 0:03:03.2]}
7. b4 {[%clk 0:02:51]} 7... Ne4 {[%clk 0:02:58.8]} 8. Bb2 {[%clk 0:02:34.8]}
8... f5 {[%clk 0:02:57.9]} 9. g3 {[%clk 0:02:25.6]} 9... c6 {[%clk 0:02:58.7]}
10. Bg2 {[%clk 0:02:26.2]} 10... Nd7 {[%clk 0:03:00.1]} 11. O-O {[%clk
0:02:27.2]} 11... Bd6 {[%clk 0:03:01.1]} 12. Qc2 {[%clk 0:02:22.3]} 12... Qf6
{[%clk 0:03:01.9]} 13. Ne1 {[%clk 0:02:23.2]} 13... Qh6 {[%clk 0:03:02.6]} 14.
Nd3 {[%clk 0:02:18.7]} 14... Ndf6 {[%clk 0:03:03.9]} 15. Ne5 {[%clk 0:02:13.5]}
15... Bxe5 {[%clk 0:03:01.2]} 16. dxe5 {[%clk 0:02:14.4]} 16... Ng4 {[%clk
0:03:02.5]} 17. Nf3 {[%clk 0:02:06.5]} 17... Ng5 {[%clk 0:03:03.6]} 18. h4
{[%clk 0:02:02.3]} 18... Ne4 {[%clk 0:03:00.8]} 19. Bd4 {[%clk 0:01:39.4]} 19...
Bd7 {[%clk 0:02:58.6]} 20. Qe2 {[%clk 0:01:14.6]} 20... b6 {[%clk 0:02:52.5]}
21. cxd5 {[%clk 0:01:12.9]} 21... cxd5 {[%clk 0:02:48.4]} 22. Rac1 {[%clk
0:01:14.4]} 22... a6 {[%clk 0:02:48]} 23. Bxb6 {[%clk 0:00:36.6]} 23... Bb5
{[%clk 0:02:48.5]} 24. Qb2 {[%clk 0:00:34.7]} 24... Bxf1 {[%clk 0:02:48.9]} 25.
Rxf1 {[%clk 0:00:36.6]} 25... Rfc8 {[%clk 0:02:45.9]} 26. Ne1 {[%clk 0:00:27.1]}
26... Nc3 {[%clk 0:02:29.5]} 27. Bd4 {[%clk 0:00:24.5]} 27... Nb5 {[%clk
0:02:23.8]} 28. Bc5 {[%clk 0:00:23.2]} 28... Rab8 {[%clk 0:02:20.1]} 29. Nd3
{[%clk 0:00:23.8]} 29... a5 {[%clk 0:02:08.4]} 30. Rd1 {[%clk 0:00:24]} 30... g5
{[%clk 0:02:02.4]} 31. hxg5 {[%clk 0:00:22.8]} 31... Qxg5 {[%clk 0:01:55.3]} 32.
Nf4 {[%clk 0:00:23.4]} 32... Qh6 {[%clk 0:01:51.7]} 33. Nxe6 {[%clk 0:00:23.5]}
33... Nxa3 {[%clk 0:00:46.1]} 34. Qxa3 {[%clk 0:00:10.1]} 34... axb4 {[%clk
0:00:42.2]} 35. Qa7 {[%clk 0:00:08.8]} 35... b3 {[%clk 0:00:37.3]} 36. Nf4
{[%clk 0:00:06.2]} 36... b2 {[%clk 0:00:24.9]} 0-1

[Event "*** Titled Tuesday 3|2 Blitz"]
[Site "Chess.com"]
[Date "2016.08.02"]
[Round "4"]
[White "Dr-Bassem"]
[Black "MinhGTrAn"]
[Result "0-1"]
[WhiteElo "2620"]
[BlackElo "2601"]
[TimeControl "180+2"]
[EndTime "11:49:57 PDT"]
[Termination "MinhGTrAn won by resignation"]

1. e4 {[%clk 0:03:01.9]} 1... c5 {[%clk 0:03:00.8]} 2. Nf3 {[%clk 0:03:02.5]}
2... d6 {[%clk 0:03:02]} 3. g3 {[%clk 0:03:03.6]} 3... Nf6 {[%clk 0:03:03]} 4.
d3 {[%clk 0:03:03.7]} 4... g6 {[%clk 0:03:00.8]} 5. Bg2 {[%clk 0:03:04.3]} 5...
Bg7 {[%clk 0:03:02.5]} 6. O-O {[%clk 0:03:05.2]} 6... O-O {[%clk 0:03:04.1]} 7.
c3 {[%clk 0:03:06.6]} 7... Bg4 {[%clk 0:03:02.5]} 8. h3 {[%clk 0:03:05.5]} 8...
Bxf3 {[%clk 0:03:03.7]} 9. Qxf3 {[%clk 0:03:07.4]} 9... Nc6 {[%clk 0:03:05.6]}
10. Be3 {[%clk 0:03:08.5]} 10... Nd7 {[%clk 0:03:07]} 11. Rd1 {[%clk 0:03:09.5]}
11... Qb6 {[%clk 0:03:06.6]} 12. Qe2 {[%clk 0:03:10.8]} 12... Rac8 {[%clk
0:03:04.3]} 13. Na3 {[%clk 0:03:07.4]} 13... a6 {[%clk 0:03:02.4]} 14. h4 {[%clk
0:03:04]} 14... h5 {[%clk 0:02:58.8]} 15. Bh3 {[%clk 0:02:59.3]} 15... Rc7
{[%clk 0:02:52.8]} 16. Nc4 {[%clk 0:02:51.6]} 16... Qa7 {[%clk 0:02:53.4]} 17.
a4 {[%clk 0:02:51.5]} 17... Nb6 {[%clk 0:02:47.8]} 18. Nd2 {[%clk 0:02:45.6]}
18... e6 {[%clk 0:02:39.7]} 19. Bf4 {[%clk 0:02:40.9]} 19... Rd7 {[%clk
0:02:22.7]} 20. a5 {[%clk 0:02:39.6]} 20... Nc8 {[%clk 0:02:19.9]} 21. Nc4
{[%clk 0:02:40.4]} 21... Rfd8 {[%clk 0:02:15.5]} 22. Bg5 {[%clk 0:02:37.5]}
22... Re8 {[%clk 0:02:12.6]} 23. Qf3 {[%clk 0:01:58]} 23... b5 {[%clk 0:02:05]}
24. axb6 {[%clk 0:01:57.6]} 24... Nxb6 {[%clk 0:02:05.6]} 25. Bf6 {[%clk
0:01:55.9]} 25... Nxc4 {[%clk 0:01:59.3]} 26. Bxg7 {[%clk 0:01:51.2]} 26... Kxg7
{[%clk 0:01:48.2]} 27. dxc4 {[%clk 0:01:51.4]} 27... Rb8 {[%clk 0:01:46.3]} 28.
Rd2 {[%clk 0:01:51.8]} 28... Rb6 {[%clk 0:01:43.8]} 29. Rad1 {[%clk 0:01:50.5]}
29... Qb8 {[%clk 0:01:42.7]} 30. Qe2 {[%clk 0:01:45.4]} 30... a5 {[%clk
0:01:15.4]} 31. f4 {[%clk 0:01:45.8]} 31... Rdb7 {[%clk 0:01:11.4]} 32. Rxd6
{[%clk 0:01:43.1]} 32... Nd4 {[%clk 0:01:10.1]} 33. cxd4 {[%clk 0:01:33.2]}
33... Qxd6 {[%clk 0:00:59.7]} 34. e5 {[%clk 0:01:23.8]} 34... Qb8 {[%clk
0:00:56.2]} 35. d5 {[%clk 0:01:24.4]} 35... Rxb2 {[%clk 0:00:57]} 36. Qe4 {[%clk
0:01:18.7]} 36... R7b3 {[%clk 0:00:56.5]} 37. Rd3 {[%clk 0:00:59.1]} 37... Rxd3
{[%clk 0:00:47.5]} 38. Qxd3 {[%clk 0:01:01]} 38... Rb3 {[%clk 0:00:49.4]} 39.
Qc2 {[%clk 0:00:58.8]} 39... Rxg3+ {[%clk 0:00:45.8]} 40. Kh2 {[%clk 0:00:59.5]}
40... Qb3 {[%clk 0:00:45.8]} 41. Qxb3 {[%clk 0:00:55.8]} 41... Rxb3 {[%clk
0:00:47.7]} 42. dxe6 {[%clk 0:00:41.6]} 42... Rxh3+ {[%clk 0:00:48.4]} 43. Kxh3
{[%clk 0:00:41.9]} 43... fxe6 {[%clk 0:00:50.3]} 44. Kg3 {[%clk 0:00:37.3]}
44... a4 {[%clk 0:00:51.8]} 0-1

[Event "*** Titled Tuesday 3|2 Blitz"]
[Site "Chess.com"]
[Date "2016.08.02"]
[Round "4"]
[White "pedromartinez91"]
[Black "ChessWarrior7197"]
[Result "1-0"]
[WhiteElo "2289"]
[BlackElo "2461"]
[TimeControl "180+2"]
[EndTime "11:49:58 PDT"]
[Termination "pedromartinez91 won by resignation"]

1. Nf3 {[%clk 0:03:01.9]} 1... Nf6 {[%clk 0:03:00.5]} 2. g3 {[%clk 0:03:02.2]}
2... e6 {[%clk 0:03:01.7]} 3. Bg2 {[%clk 0:03:03.1]} 3... d5 {[%clk 0:03:02.9]}
4. O-O {[%clk 0:03:04.1]} 4... Be7 {[%clk 0:03:04.3]} 5. c4 {[%clk 0:03:04.7]}
5... O-O {[%clk 0:03:05.4]} 6. d4 {[%clk 0:03:05.5]} 6... c6 {[%clk 0:03:06.2]}
7. Qc2 {[%clk 0:02:59.5]} 7... b6 {[%clk 0:03:06.9]} 8. Rd1 {[%clk 0:02:59.4]}
8... Bb7 {[%clk 0:03:07.8]} 9. Ne5 {[%clk 0:03:00]} 9... Nbd7 {[%clk 0:03:07.9]}
10. cxd5 {[%clk 0:02:58.9]} 10... cxd5 {[%clk 0:03:08.5]} 11. Nc6 {[%clk
0:03:00.1]} 11... Bxc6 {[%clk 0:03:08.3]} 12. Qxc6 {[%clk 0:03:01.7]} 12... Rc8
{[%clk 0:03:09.4]} 13. Qb5 {[%clk 0:03:02.6]} 13... Ne8 {[%clk 0:03:06.1]} 14.
Nc3 {[%clk 0:03:00.4]} 14... Nd6 {[%clk 0:03:06.8]} 15. Qa6 {[%clk 0:03:00.2]}
15... Qc7 {[%clk 0:03:07.7]} 16. Bf4 {[%clk 0:03:00.3]} 16... Qb7 {[%clk
0:03:05.8]} 17. Qxb7 {[%clk 0:02:41.2]} 17... Nxb7 {[%clk 0:03:05.5]} 18. Rac1
{[%clk 0:02:06.2]} 18... Bd6 {[%clk 0:03:05.3]} 19. Bd2 {[%clk 0:01:55.1]} 19...
a6 {[%clk 0:03:02.5]} 20. e4 {[%clk 0:01:55.5]} 20... dxe4 {[%clk 0:02:59.3]}
21. Nxe4 {[%clk 0:01:47.7]} 21... Be7 {[%clk 0:02:58.5]} 22. Bf4 {[%clk
0:01:45.9]} 22... Na5 {[%clk 0:02:54.6]} 23. Bc7 {[%clk 0:01:42.1]} 23... f5
{[%clk 0:02:38.5]} 24. Nd6 {[%clk 0:01:39.4]} 24... Bxd6 {[%clk 0:02:37.5]} 25.
Bxd6 {[%clk 0:01:40.4]} 25... Rfd8 {[%clk 0:02:34]} 26. d5 {[%clk 0:01:40.2]}
26... e5 {[%clk 0:02:15.1]} 27. Bc7 {[%clk 0:01:38.1]} 27... Re8 {[%clk
0:02:09.7]} 28. Bf1 {[%clk 0:01:38.2]} 28... Ra8 {[%clk 0:02:04.9]} 29. d6
{[%clk 0:01:35.1]} 29... e4 {[%clk 0:02:04.9]} 30. b4 {[%clk 0:01:35]} 30... Nb7
{[%clk 0:02:04.7]} 31. Bc4+ {[%clk 0:01:36.4]} 31... Kf8 {[%clk 0:02:03.3]} 32.
Bd5 {[%clk 0:01:37.9]} 32... Ra7 {[%clk 0:02:03.6]} 33. Bc6 {[%clk 0:01:39.3]}
33... Ne5 {[%clk 0:02:00.3]} 34. d7 {[%clk 0:01:23.6]} 34... Re7 {[%clk
0:01:45.3]} 35. Bd6 {[%clk 0:01:08.5]} 35... Nxc6 {[%clk 0:01:44.2]} 36. Rxc6
{[%clk 0:01:02.2]} 36... Nd8 {[%clk 0:01:45.1]} 37. Bxe7+ {[%clk 0:00:57.8]}
37... Kxe7 {[%clk 0:01:46.1]} 38. Rxb6 {[%clk 0:00:59]} 38... a5 {[%clk
0:01:47.5]} 39. b5 {[%clk 0:00:59]} 39... Rc7 {[%clk 0:01:47.8]} 40. Ra6 {[%clk
0:00:54.6]} 40... Rc5 {[%clk 0:01:44.5]} 41. Rxa5 {[%clk 0:00:54.7]} 41... g5
{[%clk 0:01:41.4]} 42. a4 {[%clk 0:00:53.9]} 42... f4 {[%clk 0:01:42.9]} 43. Ra8
{[%clk 0:00:50]} 43... e3 {[%clk 0:01:42.4]} 44. fxe3 {[%clk 0:00:50.2]} 44...
fxe3 {[%clk 0:01:43.4]} 45. Re1 {[%clk 0:00:51]} 45... Kxd7 {[%clk 0:01:38.1]}
46. Rxe3 {[%clk 0:00:47.7]} 46... Ne6 {[%clk 0:01:38.7]} 47. Ra7+ {[%clk
0:00:46.9]} 47... Rc7 {[%clk 0:01:35]} 48. Rxc7+ {[%clk 0:00:46.7]} 48... Nxc7
{[%clk 0:01:36.5]} 49. b6 {[%clk 0:00:47.9]} 49... Nd5 {[%clk 0:01:36.2]} 50.
Rd3 {[%clk 0:00:48.8]} 50... Kc6 {[%clk 0:01:37.3]} 51. Rxd5 {[%clk 0:00:49.8]}
51... Kxd5 {[%clk 0:01:38.9]} 52. b7 {[%clk 0:00:50.3]} 52... Ke4 {[%clk
0:01:40.4]} 53. b8=Q {[%clk 0:00:49.9]} 53... Kf5 {[%clk 0:01:41.4]} 54. Qb5+
{[%clk 0:00:50.4]} 54... Kg6 {[%clk 0:01:42.6]} 55. g4 {[%clk 0:00:50.7]} 55...
Kg7 {[%clk 0:01:41.7]} 56. Qxg5+ {[%clk 0:00:50.2]} 56... Kf7 {[%clk 0:01:42.8]}
57. Qf5+ {[%clk 0:00:51.1]} 57... Ke7 {[%clk 0:01:44.3]} 58. Qxh7+ {[%clk
0:00:51.8]} 58... Kd6 {[%clk 0:01:46]} 59. Qe4 {[%clk 0:00:52.4]} 59... Kc5
{[%clk 0:01:45.4]} 60. Kf2 {[%clk 0:00:53.4]} 60... Kb6 {[%clk 0:01:46.1]} 61.
Ke3 {[%clk 0:00:54.5]} 61... Kc5 {[%clk 0:01:46.8]} 62. Kd3 {[%clk 0:00:55.3]}
62... Kb6 {[%clk 0:01:47.3]} 63. Kc4 {[%clk 0:00:55.8]} 63... Ka5 {[%clk
0:01:47.8]} 64. Qd5+ {[%clk 0:00:56.1]} 64... Ka6 {[%clk 0:01:49.3]} 65. Qb5+
{[%clk 0:00:56.7]} 65... Ka7 {[%clk 0:01:50.9]} 66. Kc5 {[%clk 0:00:56.8]} 1-0

[Event "*** Titled Tuesday 3|2 Blitz"]
[Site "Chess.com"]
[Date "2016.08.02"]
[Round "4"]
[White "ruifeng"]
[Black "Balandel"]
[Result "0-1"]
[WhiteElo "2308"]
[BlackElo "2332"]
[TimeControl "180+2"]
[EndTime "11:50:06 PDT"]
[Termination "Balandel won by resignation"]

1. b3 {[%clk 0:03:01.9]} 1... e5 {[%clk 0:02:56]} 2. Bb2 {[%clk 0:03:02.8]} 2...
d6 {[%clk 0:02:56.5]} 3. e3 {[%clk 0:03:01]} 3... Be6 {[%clk 0:02:56.3]} 4. d4
{[%clk 0:02:58.2]} 4... exd4 {[%clk 0:02:52.3]} 5. Qxd4 {[%clk 0:02:58.4]} 5...
Nf6 {[%clk 0:02:53.2]} 6. Nc3 {[%clk 0:02:54.2]} 6... Nc6 {[%clk 0:02:54.3]} 7.
Qd2 {[%clk 0:02:48.8]} 7... Be7 {[%clk 0:02:54.9]} 8. O-O-O {[%clk 0:02:40.5]}
8... O-O {[%clk 0:02:55.8]} 9. g4 {[%clk 0:02:34.7]} 9... Bxg4 {[%clk
0:02:53.4]} 10. Be2 {[%clk 0:02:35.6]} 10... Bf5 {[%clk 0:02:49.8]} 11. Nf3
{[%clk 0:02:34.1]} 11... Ne5 {[%clk 0:02:48.7]} 12. Nd4 {[%clk 0:02:29.5]} 12...
Bg6 {[%clk 0:02:49.5]} 13. f4 {[%clk 0:02:29.5]} 13... Neg4 {[%clk 0:02:47.6]}
14. Bf3 {[%clk 0:02:12]} 14... c5 {[%clk 0:02:44]} 15. Ndb5 {[%clk 0:02:08.7]}
15... a6 {[%clk 0:02:42.7]} 16. Na3 {[%clk 0:01:57.2]} 16... b5 {[%clk
0:02:38.9]} 17. h3 {[%clk 0:01:52.1]} 17... Nh6 {[%clk 0:02:37.6]} 18. Nd5
{[%clk 0:01:42.8]} 18... Ne4 {[%clk 0:02:34.3]} 19. Qg2 {[%clk 0:01:37.2]} 19...
f5 {[%clk 0:02:27]} 20. Bxe4 {[%clk 0:00:58]} 20... fxe4 {[%clk 0:02:27.4]} 21.
h4 {[%clk 0:00:59.2]} 21... Bxh4 {[%clk 0:02:20.2]} 22. Qh3 {[%clk 0:00:52.2]}
22... Be7 {[%clk 0:02:04.7]} 23. Qe6+ {[%clk 0:00:49.9]} 23... Rf7 {[%clk
0:02:05.8]} 24. Rdg1 {[%clk 0:00:41.9]} 24... Nf5 {[%clk 0:01:31]} 25. Rxg6
{[%clk 0:00:34.3]} 25... hxg6 {[%clk 0:01:31.7]} 26. Qxg6 {[%clk 0:00:35.4]}
26... Bh4 {[%clk 0:01:32.5]} 27. Nb1 {[%clk 0:00:24.1]} 27... Qe8 {[%clk
0:01:09.5]} 28. Nd2 {[%clk 0:00:22.7]} 28... Rf8 {[%clk 0:01:05]} 29. Qg4 {[%clk
0:00:22.2]} 29... Qf7 {[%clk 0:00:59.6]} 30. c4 {[%clk 0:00:15.3]} 30... bxc4
{[%clk 0:00:56.4]} 31. bxc4 {[%clk 0:00:16.5]} 31... Rab8 {[%clk 0:00:55.4]} 32.
Nxe4 {[%clk 0:00:16.4]} 32... Rxb2 {[%clk 0:00:51.9]} 33. Kxb2 {[%clk 0:00:17]}
33... Qb7+ {[%clk 0:00:46.8]} 34. Kc2 {[%clk 0:00:11.6]} 34... Nxe3+ {[%clk
0:00:46.2]} 35. Nxe3 {[%clk 0:00:11]} 35... Qxe4+ {[%clk 0:00:47]} 36. Kd2
{[%clk 0:00:11.2]} 36... Qxh1 {[%clk 0:00:48]} 37. Qe6+ {[%clk 0:00:12.1]} 37...
Kh8 {[%clk 0:00:47.9]} 38. Qg6 {[%clk 0:00:11.4]} 38... Bf6 {[%clk 0:00:30.9]}
39. Nf5 {[%clk 0:00:11.9]} 39... Rb8 {[%clk 0:00:26.7]} 40. Nxd6 {[%clk
0:00:11.5]} 40... Rb2+ {[%clk 0:00:24.6]} 41. Ke3 {[%clk 0:00:12.6]} 41... Bd4+
{[%clk 0:00:24.7]} 0-1

[Event "*** Titled Tuesday 3|2 Blitz"]
[Site "Chess.com"]
[Date "2016.08.02"]
[Round "4"]
[White "GianmarcoVaR"]
[Black "ajkom197"]
[Result "1-0"]
[WhiteElo "2454"]
[BlackElo "2199"]
[TimeControl "180+2"]
[EndTime "11:50:07 PDT"]
[Termination "GianmarcoVaR won by checkmate"]

1. Nf3 {[%clk 0:02:59.2]} 1... d5 {[%clk 0:03:00.2]} 2. d4 {[%clk 0:03:01.1]}
2... Nf6 {[%clk 0:03:01.5]} 3. c4 {[%clk 0:03:02.2]} 3... c6 {[%clk 0:03:02.7]}
4. e3 {[%clk 0:03:03.5]} 4... Bf5 {[%clk 0:03:02.2]} 5. Nc3 {[%clk 0:03:03]}
5... e6 {[%clk 0:03:03.2]} 6. Nh4 {[%clk 0:03:03.9]} 6... Be4 {[%clk 0:03:02.4]}
7. f3 {[%clk 0:03:04.6]} 7... Bg6 {[%clk 0:02:51.3]} 8. Qb3 {[%clk 0:03:05.4]}
8... Qb6 {[%clk 0:02:51.1]} 9. Nxg6 {[%clk 0:03:05]} 9... hxg6 {[%clk
0:02:50.1]} 10. g3 {[%clk 0:03:03.4]} 10... Bd6 {[%clk 0:02:48.5]} 11. Kf2
{[%clk 0:03:03.9]} 11... Nbd7 {[%clk 0:02:49]} 12. Kg2 {[%clk 0:02:27]} 12...
Qxb3 {[%clk 0:02:37.5]} 13. axb3 {[%clk 0:02:27.1]} 13... O-O {[%clk 0:02:38]}
14. Bd3 {[%clk 0:01:57.8]} 14... e5 {[%clk 0:02:35.3]} 15. Bd2 {[%clk
0:01:42.4]} 15... Rfe8 {[%clk 0:02:32.2]} 16. Rhe1 {[%clk 0:01:42.7]} 16... e4
{[%clk 0:02:27.7]} 17. fxe4 {[%clk 0:01:43.1]} 17... Nxe4 {[%clk 0:02:28.3]} 18.
Nxe4 {[%clk 0:01:39.3]} 18... dxe4 {[%clk 0:02:30.2]} 19. Be2 {[%clk 0:01:40.8]}
19... a6 {[%clk 0:02:20.5]} 20. g4 {[%clk 0:01:09.7]} 20... g5 {[%clk 0:02:16]}
21. Rf1 {[%clk 0:00:59.3]} 21... g6 {[%clk 0:02:13.5]} 22. b4 {[%clk 0:00:38.5]}
22... Bf8 {[%clk 0:02:10.2]} 23. b5 {[%clk 0:00:36.1]} 23... axb5 {[%clk
0:02:07.1]} 24. cxb5 {[%clk 0:00:38]} 24... c5 {[%clk 0:02:08.3]} 25. Rxa8
{[%clk 0:00:37.2]} 25... Rxa8 {[%clk 0:02:07.9]} 26. Bc4 {[%clk 0:00:38.3]}
26... cxd4 {[%clk 0:02:03.1]} 27. exd4 {[%clk 0:00:39.3]} 27... Rc8 {[%clk
0:01:56]} 28. Bxf7+ {[%clk 0:00:34.9]} 28... Kg7 {[%clk 0:01:56.5]} 29. Bb3
{[%clk 0:00:35.5]} 29... Nf6 {[%clk 0:01:51.9]} 30. Bxg5 {[%clk 0:00:35.7]}
30... Be7 {[%clk 0:01:52.1]} 31. h3 {[%clk 0:00:32.2]} 31... Rd8 {[%clk
0:01:50.8]} 32. Rc1 {[%clk 0:00:16.1]} 32... Rd7 {[%clk 0:01:41.9]} 33. Be6
{[%clk 0:00:15.9]} 33... Rd6 {[%clk 0:01:40.5]} 34. Bxf6+ {[%clk 0:00:11.6]}
34... Bxf6 {[%clk 0:01:34.4]} 35. d5 {[%clk 0:00:11.7]} 35... b6 {[%clk
0:01:33.6]} 36. Rc6 {[%clk 0:00:10.2]} 36... Be5 {[%clk 0:01:34.8]} 37. g5
{[%clk 0:00:08.3]} 37... Bf4 {[%clk 0:01:28.8]} 38. h4 {[%clk 0:00:08.4]} 38...
Kf8 {[%clk 0:01:28.9]} 39. Rc8+ {[%clk 0:00:08.1]} 39... Ke7 {[%clk 0:01:28.9]}
40. Rc7+ {[%clk 0:00:05.6]} 40... Kf8 {[%clk 0:01:29.4]} 41. Rf7+ {[%clk
0:00:06.4]} 41... Ke8 {[%clk 0:01:29.3]} 42. Rxf4 {[%clk 0:00:08.3]} 42... Rd8
{[%clk 0:01:28.5]} 43. Rxe4 {[%clk 0:00:09.5]} 43... Kf8 {[%clk 0:01:29.7]} 44.
Rf4+ {[%clk 0:00:10.2]} 44... Kg7 {[%clk 0:01:30.8]} 45. Rf7+ {[%clk 0:00:11]}
45... Kh8 {[%clk 0:01:32]} 46. Rc7 {[%clk 0:00:12.6]} 46... Rf8 {[%clk
0:01:32.5]} 47. d6 {[%clk 0:00:13.7]} 47... Re8 {[%clk 0:01:28.6]} 48. Re7
{[%clk 0:00:13.2]} 48... Rd8 {[%clk 0:01:27.9]} 49. d7 {[%clk 0:00:13.9]} 49...
Rf8 {[%clk 0:01:18.2]} 50. Re8 {[%clk 0:00:13.6]} 50... Kh7 {[%clk 0:01:19.7]}
51. d8=Q {[%clk 0:00:11.7]} 51... Kg7 {[%clk 0:01:21.6]} 52. Rxf8 {[%clk
0:00:11.2]} 52... Kh7 {[%clk 0:01:22.5]} 53. Qe7# {[%clk 0:00:13.1]} 1-0